bitfinex/quotes_ETHUSD_20241223
["timestamp","ask_amount","ask_price","bid_price","bid_amount"]
[1734962738748,0.09305724,3340.8,3340.1,2.82504883]
[1734962739035,0.09305724,3340.8,3340.5,2.82504883]
[1734962739223,0.09305724,3340.8,3340.6,3.06228193]
[1734962739750,0.09305724,3340.8,3340.6,3.92046044]
[1734962740103,0.09305724,3340.8,3340.6,0.03891636]
[1734962740548,0.09305724,3340.8,3340.6,5.81845883]
[1734962740753,0.09305724,3340.8,3340.7,0.03599025]
[1734962740913,0.169841,3341.9,3340.7,0.03599025]
[1734962741117,0.169841,3341.9,3340.8,0.02992348]
[1734962741316,0.169841,3341.9,3340.9,2.9932]
[1734962741623,0.169841,3341.9,3340.9,0.0359444]
[1734962741954,0.8086,3341.6,3340.9,0.0359444]
[1734962742116,0.169841,3341.9,3340.9,0.0359444]
[1734962742318,0.169841,3341.9,3340.4,2.99365]
[1734962742521,2.9924,3341.8,3341.0,0.03592148]
[1734962742706,2.9924,3341.8,3340.5,2.99353]
[1734962742707,0.3970841,3341.7,3340.5,2.99353]
[1734962742905,0.169841,3341.9,3341.7,2.99248]
[1734962743147,0.169841,3341.9,3341.8,2.82504883]
[1734962743354,0.169841,3341.9,3341.8,5.853177]
[1734962743558,0.169841,3341.9,3341.8,0.03573817]
[1734962743910,0.169841,3341.9,3341.5,3.0]
[1734962744147,0.169841,3341.9,3341.8,3.02812817]
[1734962744344,0.37691792,3342.2,3342.1,5.99213]
[1734962744345,0.00128121,3342.2,3342.1,5.99213]
[1734962744753,0.00128121,3342.2,3342.1,3.03566946]
[1734962744954,0.00128121,3342.2,3342.1,0.03566946]
[1734962745105,0.00128121,3342.2,3341.3,3.168]
[1734962745310,0.00128121,3342.2,3342.1,0.03566946]
[1734962745536,0.00128121,3342.2,3341.4,3.34671808]
[1734962745537,0.00128121,3342.2,3341.5,2.99266]
[1734962745758,0.00128121,3342.2,3342.1,3.0268696]
[1734962745952,0.00128121,3342.2,3342.1,3.05677891]
[1734962746141,0.00128121,3342.2,3342.1,6.05677891]
[1734962746338,1.21e-06,3342.2,3342.1,7.76428537]
[1734962746652,1.21e-06,3342.2,3342.1,7.21428537]
[1734962747280,1.21e-06,3342.2,3342.1,6.0268696]
[1734962749272,1.21e-06,3342.2,3342.1,0.0347396]
[1734962749475,1.21e-06,3342.2,3342.1,6.0268696]
[1734962750133,1.21e-06,3342.2,3342.1,6.5768696]
[1734962750788,1.21e-06,3342.2,3342.1,6.5718696]
[1734962751069,1.21e-06,3342.2,3342.1,7.81079444]
[1734962752056,1.21e-06,3342.2,3342.1,7.26079444]
[1734962752254,3.75312,3343.7,3342.5,2.9917]
[1734962752474,0.7624,3343.7,3342.2,3.0]
[1734962752682,2.99095,3343.5,3342.6,0.03189795]
[1734962753034,2.99098,3343.4,3342.3,3.0]
[1734962753234,0.029935,3343.6,3342.1,3.0]
[1734962753501,0.8067,3343.0,3342.1,3.0]
[1734962753775,1.186498,3343.0,3342.2,0.03198955]
[1734962754277,1.186498,3343.0,3341.9,0.02991268]
[1734962754577,0.7809,3343.5,3342.3,0.03097283]
[1734962754731,0.7809,3343.5,3342.0,0.0299112]
[1734962754930,0.7809,3343.5,3342.4,0.03094993]
[1734962755173,0.7809,3343.5,3342.3,2.99195]
[1734962755478,0.7809,3343.5,3342.5,2.99172]
[1734962755630,0.7809,3343.5,3342.9,2.99137]
[1734962756172,0.7809,3343.5,3343.0,0.03081255]
[1734962756472,0.8211,3344.0,3342.7,0.02990608]
[1734962756674,2.82504883,3344.9,3343.1,0.03078966]
[1734962756675,0.58494002,3344.7,3343.1,0.03078966]
[1734962756882,0.58494002,3344.7,3342.7,0.02990608]
[1734962756883,2.99006,3344.5,3343.4,2.99088]
[1734962757038,0.34099889,3344.6,3343.5,0.02990193]
[1734962757376,0.7772,3344.9,3343.7,2.99067]
[1734962757678,0.7772,3344.9,3343.9,2.9905]
[1734962758047,0.7772,3344.9,3343.8,0.03009503]
[1734962758254,0.7772,3344.9,3344.0,3.02046927]
[1734962758480,0.7772,3344.9,3343.9,0.03007215]
[1734962758639,0.7772,3344.9,3344.1,0.03002639]
[1734962758835,0.7772,3344.9,3344.2,0.02933585]
[1734962759237,0.7772,3344.9,3343.6,2.99073]
[1734962759436,0.7772,3344.9,3343.4,3.60543059]
[1734962759437,0.7772,3344.9,3344.1,2.99026]
[1734962759681,0.7772,3344.9,3344.1,3.289286]
[1734962759843,0.7772,3344.9,3344.2,0.02933585]
[1734962760274,3.76682,3344.9,3344.2,0.02933585]
[1734962760480,0.7772,3344.9,3343.6,3.0]
[1734962760642,0.76352845,3345.2,3342.7,2.99158]
[1734962760643,3.81457,3344.4,3344.3,0.02931298]
[1734962760838,1.504942,3344.4,3344.3,0.02931298]
[1734962761057,0.8245,3344.4,3343.4,0.02989984]
[1734962761254,0.76352845,3345.2,3343.4,0.02989984]
[1734962761255,3.81397,3345.1,3344.0,2.9904]
[1734962761587,2.98955,3345.0,3344.1,0.02935873]
[1734962761739,2.98965,3344.9,3344.1,0.02935873]
[1734962761940,2.98965,3344.9,3343.8,3.02049657]
[1734962762140,0.8245,3345.1,3344.2,0.02933585]
[1734962762335,0.8245,3345.1,3344.2,0.0298963]
[1734962762567,0.169841,3345.2,3344.3,0.02858466]
[1734962762786,0.169841,3345.2,3344.7,2.98979]
[1734962763089,0.169841,3345.2,3344.3,0.02858466]
[1734962763285,3.159201,3345.2,3344.8,0.02847031]
[1734962763444,3.159201,3345.2,3344.1,2.99025]
[1734962763445,2.98948,3345.1,3344.0,2.99041]
[1734962763643,0.7635,3344.7,3343.8,0.30204966]
[1734962763871,2.99,3344.5,3343.4,2.82504883]
[1734962764079,2.99008,3344.4,3343.1,3.0]
[1734962764259,2.99008,3344.4,3343.5,0.02876769]
[1734962764584,2.99041,3344.1,3343.6,0.03160693]
[1734962764785,1.062541,3344.0,3343.6,0.04413]
[1734962765086,0.7635,3344.0,3343.0,2.82504883]
[1734962765253,0.7635,3344.5,3343.6,2.99074]
[1734962765452,0.7635,3344.5,3342.9,0.59123653]
[1734962765453,0.7635,3344.5,3343.7,0.04422325]
[1734962765640,0.7635,3344.5,3343.3,2.99097]
[1734962765841,0.8266,3344.8,3343.4,0.04433767]
[1734962766065,2.9904,3344.1,3343.4,0.04433767]
[1734962766269,0.8266,3344.0,3343.1,2.99122]
[1734962766461,0.8266,3344.0,3343.5,0.03348239]
[1734962766657,0.8266,3344.0,3343.1,2.99123]
[1734962766859,0.8266,3344.0,3343.2,0.03661987]
[1734962767564,0.8266,3344.0,3343.1,2.99121]
[1734962767765,4.198736,3344.0,3343.3,0.03667964]
[1734962768068,4.198736,3344.0,3343.0,2.99131]
[1734962768264,4.198736,3344.0,3343.4,0.03664843]
[1734962768463,1.208296,3344.0,3343.4,0.03664843]
[1734962768701,0.029935,3344.4,3341.8,4.88894713]
[1734962768702,0.8184,3343.6,3341.8,4.88894713]
[1734962768901,3.80918,3343.6,3343.5,0.04921257]
[1734962769107,0.8184,3343.6,3342.3,2.99193]
[1734962769411,0.8184,3343.6,3341.9,2.9923]
[1734962769412,0.8206,3343.1,3341.8,4.88894713]
[1734962769608,0.8206,3343.1,3341.9,1.71605598]
[1734962769905,0.8206,3343.1,3342.1,2.99211]
[1734962770114,2.99166,3342.7,3341.9,1.68614371]
[1734962770309,2.99177,3342.5,3341.4,3.14184883]
[1734962770482,2.99177,3342.5,3341.4,3.30954]
[1734962770805,2.99188,3342.4,3341.4,0.3168]
[1734962771308,0.841935,3342.4,3340.6,2.82504883]
[1734962771512,2.82504883,3343.0,3340.6,5.81848883]
[1734962771513,0.812,3341.8,3340.6,5.81848883]
[1734962771708,0.812,3341.8,3340.6,2.82504883]
[1734962771863,0.812,3341.8,3340.9,2.9932]
[1734962772059,0.812,3341.8,3340.4,2.99361]
[1734962772408,2.99299,3341.2,3339.8,2.82504883]
[1734962772715,3.80607,3341.1,3340.0,2.994]
[1734962772884,3.80607,3341.1,3339.5,2.99443]
[1734962773212,0.813,3341.1,3339.7,2.99419]
[1734962773390,0.756,3341.3,3339.8,0.02993394]
[1734962773609,0.756,3341.0,3339.9,2.99401]
[1734962773810,3.74915,3341.0,3339.7,2.99427]
[1734962773983,4.124065,3341.0,3339.7,0.88137788]
[1734962774330,0.756,3340.8,3339.7,0.88137788]
[1734962774626,0.756,3340.8,3340.2,2.99382]
[1734962774833,0.7751,3341.2,3340.8,2.9932]
[1734962774975,2.99093,3343.5,3340.6,2.82504883]
[1734962774976,0.7751,3341.9,3340.6,2.82504883]
[1734962775177,0.7751,3341.9,3340.8,2.99321]
[1734962775408,0.7751,3341.9,3340.8,3.57506588]
[1734962775734,0.7841,3341.5,3340.3,3.0]
[1734962775930,0.7841,3341.5,3340.3,5.99372]
[1734962775931,3.77681,3341.5,3340.3,5.99372]
[1734962776124,0.7841,3341.5,3340.4,0.02992983]
[1734962776824,0.7841,3341.5,3340.6,2.99338]
[1734962777006,0.7841,3341.5,3340.7,0.02992858]
[1734962777424,2.9924,3341.8,3340.7,0.02992858]
[1734962777747,0.8206,3341.6,3340.7,0.02992858]
[1734962778099,0.8206,3341.6,3340.9,2.99314]
[1734962778450,0.8206,3342.3,3341.0,0.0299255]
[1734962778631,0.8206,3342.3,3341.3,2.9928]
[1734962778831,0.8206,3342.3,3342.0,2.99213]
[1734962779045,5.81555883,3344.0,3342.2,2.99204]
[1734962779351,2.99019,3344.3,3342.7,2.99156]
[1734962779352,0.8193,3343.8,3342.7,2.99156]
[1734962779648,0.7585,3343.6,3342.5,2.99175]
[1734962779943,3.74933,3343.6,3342.3,3.0]
[1734962780154,0.7585,3343.6,3342.6,2.9916]
[1734962780304,0.7585,3343.6,3342.2,3.0]
[1734962780504,1.19326854,3343.6,3342.5,2.99176]
[1734962780801,0.59841537,3343.9,3342.3,0.95903798]
[1734962780802,0.59841537,3343.9,3342.6,0.02991169]
[1734962781006,0.59841537,3343.9,3342.9,2.9914]
[1734962781246,0.7816,3344.0,3342.3,3.0]
[1734962781401,0.7563,3344.2,3342.7,2.99155]
[1734962781606,0.7563,3343.7,3342.7,2.99155]
[1734962781948,3.020805,3343.6,3342.1,3.0]
[1734962782119,0.7891,3343.9,3342.2,0.02991305]
[1734962782452,3.77965,3343.9,3342.4,3.0]
[1734962782605,2.99061,3343.8,3342.4,3.0]
[1734962782944,0.7891,3343.9,3342.6,2.99168]
[1734962783104,0.029935,3344.4,3342.7,0.93411851]
[1734962783303,2.99015,3344.4,3343.3,2.99102]
[1734962783503,0.7891,3344.3,3343.3,2.99102]
[1734962783763,0.7891,3344.3,3343.4,0.02860542]
[1734962783906,0.7891,3344.3,3343.6,2.99078]
[1734962784100,0.7891,3344.3,3343.8,2.9906]
[1734962784404,0.7891,3344.3,3343.9,0.03136859]
[1734962785651,0.7891,3344.3,3343.0,4.24792563]
[1734962785810,0.7891,3344.3,3343.1,2.99123]
[1734962786004,0.029935,3344.2,3343.1,0.03157983]
[1734962786211,0.7906,3343.9,3343.1,0.03157983]
[1734962786547,0.7906,3343.8,3343.1,1.05902122]
[1734962787843,0.7906,3343.8,3343.1,0.03157983]
[1734962788164,0.7906,3343.8,3342.8,2.99144]
[1734962788362,0.7906,3343.8,3343.2,0.03385685]
[1734962788515,0.7906,3343.8,3343.1,2.99122]
[1734962788715,0.7906,3343.8,3343.3,0.03382824]
[1734962788956,0.7957,3344.3,3343.1,3.0]
[1734962789158,0.7957,3344.3,3343.4,0.03379963]
[1734962789316,0.7957,3344.3,3343.3,2.99104]
[1734962789519,0.7957,3344.3,3343.5,0.03400605]
[1734962789951,0.7957,3344.3,3343.6,0.03397745]
[1734962790120,0.7957,3344.3,3343.3,0.02990547]
[1734962790329,0.7957,3344.3,3344.0,2.99041]
[1734962790671,0.7957,3344.3,3344.2,2.99025]
[1734962790970,0.8019,3345.1,3344.2,0.03667234]
[1734962791137,0.8019,3345.1,3344.0,2.99036]
[1734962791333,0.8019,3345.0,3344.3,0.03664114]
[1734962791549,0.8263,3344.9,3343.6,2.9907]
[1734962791718,0.8263,3344.9,3344.4,0.03660995]
[1734962791920,0.8263,3344.9,3344.1,2.99026]
[1734962792149,0.8263,3344.9,3344.5,0.03657876]
[1734962792345,0.8263,3344.9,3343.8,2.99053]
[1734962792588,0.7569,3344.6,3343.6,3.2928303]
[1734962792791,0.7569,3344.6,3343.6,2.99077]
[1734962793059,2.99025,3344.3,3343.1,7.23913563]
[1734962793277,2.99025,3344.3,3343.1,8.40186874]
[1734962793477,0.7569,3344.6,3343.2,0.02990737]
[1734962793708,0.7569,3344.6,3343.2,2.99108]
[1734962793999,0.8297,3344.5,3343.2,2.99108]
[1734962794208,0.8297,3344.5,3343.2,0.02990285]
[1734962794372,0.813,3344.0,3343.1,1.24792563]
[1734962794710,0.813,3344.0,3343.0,5.9913]
[1734962794711,3.80345,3344.0,3343.0,5.9913]
[1734962794859,2.9906,3343.8,3342.9,1.24792563]
[1734962795059,0.7676,3343.6,3342.9,1.24792563]
[1734962795261,0.7676,3344.5,3343.0,0.02991059]
[1734962795460,0.7676,3344.5,3343.3,2.99103]
[1734962796008,0.7676,3344.0,3343.0,2.99123]
[1734962796165,3.75805,3344.0,3342.8,2.99147]
[1734962796376,0.7676,3343.8,3342.9,2.99134]
[1734962796819,3.75821,3343.8,3342.8,4.01977066]
[1734962797323,0.7676,3343.8,3342.9,2.99133]
[1734962798007,0.7676,3343.8,3343.0,0.02990989]
[1734962798321,0.7676,3343.8,3342.9,2.99133]
[1734962798627,0.7676,3343.8,3343.0,3.02118988]
[1734962799203,0.7676,3343.8,3343.3,2.99097]
[1734962799791,0.7676,3343.8,3342.6,2.99161]
[1734962800050,3.74459,3343.6,3342.5,4.23968563]
[1734962800228,3.74459,3343.6,3342.5,5.70167174]
[1734962800605,0.7538,3343.6,3342.7,2.99158]
[1734962800934,3.774535,3343.6,3342.5,2.99177]
[1734962801103,2.99088,3343.5,3342.5,2.99177]
[1734962801299,0.7538,3343.4,3342.5,2.99177]
[1734962801939,2.99109,3343.3,3342.1,1.24792563]
[1734962802240,0.7538,3343.2,3342.2,2.99198]
[1734962802544,2.99123,3343.1,3342.0,3.291413]
[1734962802732,0.7538,3343.0,3342.0,2.9922]
[1734962802902,0.7538,3343.0,3341.8,1.24792563]
[1734962803232,0.7538,3343.0,3342.2,2.99203]
[1734962803414,0.7538,3343.0,3342.3,2.99194]
[1734962803731,0.7538,3343.0,3342.1,2.99209]
[1734962804509,1.1657473,3343.0,3342.1,2.99209]
[1734962804847,1.1657473,3343.0,3341.4,2.80777056]
[1734962805071,0.7538,3343.0,3341.8,2.99239]
[1734962805203,0.7538,3343.0,3342.1,2.99204]
[1734962805648,0.7538,3343.0,3342.3,2.99186]
[1734962805868,0.7538,3343.0,3342.1,2.99209]
[1734962806319,0.7538,3343.0,3342.2,2.99201]
[1734962806513,0.7538,3343.0,3341.4,1.24792563]
[1734962806514,2.99151,3342.8,3341.4,1.24792563]
[1734962806839,0.7874,3342.6,3341.6,2.99251]
[1734962807044,0.7874,3342.6,3341.4,4.24064563]
[1734962807210,2.99178,3342.5,3341.4,4.24064563]
[1734962807908,2.99199,3342.3,3341.4,1.24792563]
[1734962808108,2.99163,3342.7,3341.4,1.24792563]
[1734962808109,0.7568,3342.1,3341.4,1.24792563]
[1734962808336,0.7568,3342.1,3341.5,0.03998459]
[1734962808519,0.7568,3341.8,3341.5,0.03998459]
[1734962808719,0.7568,3341.8,3341.1,2.51630707]
[1734962808720,0.7568,3341.8,3341.1,1.24792563]
[1734962808924,0.7568,3341.8,3341.2,0.02792557]
[1734962809709,0.7568,3341.8,3341.3,2.99284]
[1734962809905,0.7568,3341.8,3341.4,0.02814063]
[1734962810144,0.7568,3341.8,3341.1,2.99301]
[1734962810339,0.7568,3341.8,3341.5,0.02811772]
[1734962810559,0.7568,3341.8,3340.9,2.9932]
[1734962810864,0.7568,3341.8,3341.6,0.02809481]
[1734962811063,0.7568,3341.8,3340.9,0.29932]
[1734962811394,0.7568,3341.8,3341.0,2.99311]
[1734962811515,0.7568,3341.8,3341.0,0.0282323]
[1734962811908,0.8137,3341.7,3340.7,2.99338]
[1734962812108,0.8137,3341.7,3340.8,0.02843592]
[1734962812360,0.8137,3341.7,3341.6,2.99257]
[1734962812671,0.8137,3342.4,3341.5,2.99265]
[1734962812957,0.8137,3342.4,3341.6,0.02845288]
[1734962813336,0.8137,3342.4,3341.7,2.99248]
[1734962813519,0.8137,3342.4,3341.7,3.02090997]
[1734962813862,0.8137,3342.4,3341.8,2.99239]
[1734962814010,0.8137,3342.4,3341.7,0.02842997]
[1734962814208,0.8137,3342.4,3341.9,0.02838416]
[1734962814421,0.8137,3342.4,3341.0,2.99303]
[1734962814751,0.8137,3342.4,3341.1,0.45402081]
[1734962814963,0.8137,3342.4,3341.4,2.99271]
[1734962815458,0.8137,3342.4,3341.5,0.02847579]
[1734962815760,3.80562,3342.4,3341.3,2.99277]
[1734962816060,0.7663,3342.2,3341.6,0.02845288]
[1734962816225,2.99232,3341.9,3341.4,0.02849871]
[1734962816429,0.8127,3341.8,3340.7,1.24792563]
[1734962816652,0.8127,3341.8,3341.5,0.02847579]
[1734962816653,3.80514,3341.8,3341.5,0.02847579]
[1734962816961,0.8127,3341.6,3340.7,1.24792563]
[1734962817116,2.99283,3341.4,3340.7,1.24792563]
[1734962817311,0.8127,3341.3,3340.6,2.99345]
[1734962817518,0.8127,3341.3,3340.4,2.99361]
[1734962818656,0.8127,3341.3,3340.2,2.80777056]
[1734962818861,0.8127,3341.3,3340.5,2.99355]
[1734962819814,0.8127,3341.3,3340.6,2.99343]
[1734962820014,0.8127,3341.3,3340.3,0.58017106]
[1734962820015,0.8127,3341.3,3340.9,2.99312]
[1734962820831,0.8127,3341.3,3340.2,2.80777056]
[1734962821024,0.8127,3341.3,3340.4,2.99365]
[1734962821233,0.7663,3341.2,3340.0,1.24792563]
[1734962821428,0.860335,3341.1,3340.0,1.24792563]
[1734962821660,2.99336,3340.8,3340.0,1.24792563]
[1734962821971,0.029935,3341.1,3340.0,1.24792563]
[1734962821972,0.8304,3340.7,3340.0,1.24792563]
[1734962822268,0.8304,3340.7,3340.1,2.99389]
[1734962822422,0.8304,3340.7,3339.6,2.99437]
[1734962822621,0.8304,3340.7,3339.6,0.97158783]
[1734962823057,2.99365,3340.4,3339.5,1.24792563]
[1734962823269,3.82385,3340.7,3339.5,1.24792563]
[1734962823270,0.7815,3340.2,3339.5,1.24792563]
[1734962823464,3.77586,3339.7,3339.2,1.24792563]
[1734962823625,0.029935,3339.6,3339.2,1.24792563]
[1734962823988,0.7815,3339.7,3339.2,1.24792563]
[1734962824138,0.7815,3340.7,3340.2,2.99381]
[1734962824343,0.7815,3340.7,3339.8,2.99419]
[1734962824539,0.7815,3340.7,3339.9,0.0299358]
[1734962824852,0.7815,3340.7,3340.6,2.99347]
[1734962825016,0.7815,3340.7,3340.0,0.30241258]
[1734962825221,0.7815,3340.7,3340.1,2.9939]
[1734962825834,0.7815,3340.7,3340.2,0.02993663]
[1734962826044,0.7567,3341.7,3340.4,2.80777056]
[1734962826270,0.7567,3342.7,3341.6,2.99255]
[1734962826476,0.7567,3342.7,3341.7,2.99243]
[1734962826767,0.7567,3342.5,3341.7,2.99244]
[1734962827095,0.7502,3343.3,3342.6,2.99166]
[1734962827368,0.7502,3343.3,3342.7,3.02145472]
[1734962827593,0.029935,3343.2,3342.5,2.99175]
[1734962827739,0.7502,3343.3,3342.1,2.80777056]
[1734962827926,0.7502,3343.3,3342.5,2.99176]
[1734962828341,0.7502,3343.3,3342.7,2.99154]
[1734962828790,0.7502,3343.3,3342.2,0.28077706]
[1734962828943,0.7572,3343.0,3341.9,2.99222]
[1734962829275,0.7572,3343.0,3341.8,2.99239]
[1734962829565,0.7572,3343.0,3342.1,2.99208]
[1734962829740,0.787135,3342.9,3341.8,2.99231]
[1734962829943,0.7572,3342.9,3341.8,2.99231]
[1734962830298,3.74862,3342.9,3341.8,2.99231]
[1734962830466,0.374862,3342.8,3341.8,2.99231]
[1734962830679,0.7857,3342.7,3341.8,2.99231]
[1734962831467,0.7857,3342.7,3341.7,2.80777056]
[1734962831781,0.7593,3343.7,3342.1,5.79983056]
[1734962831984,0.7593,3343.7,3342.7,2.99159]
[1734962832138,0.7593,3343.7,3342.5,2.80777056]
[1734962832139,1.134283,3343.7,3342.5,2.80777056]
[1734962832348,0.7593,3343.7,3342.7,2.99157]
[1734962832888,0.789235,3343.6,3342.1,2.80777056]
[1734962833029,0.789235,3343.6,3342.1,2.99211]
[1734962833030,0.7593,3343.5,3342.1,2.99211]
[1734962833228,0.7593,3343.1,3342.1,2.99211]
[1734962833422,0.7593,3343.1,3342.2,2.99203]
[1734962833868,0.8177,3342.9,3341.7,4.24039563]
[1734962834093,0.8177,3342.8,3341.7,4.24039563]
[1734962834787,0.8177,3342.8,3341.8,2.99238]
[1734962834991,0.8177,3342.8,3341.7,1.24792563]
[1734962834992,3.80922,3342.8,3341.6,2.99257]
[1734962835190,3.80922,3342.8,3340.9,4.24110563]
[1734962835191,0.8177,3342.8,3342.0,2.80777056]
[1734962835348,0.8177,3342.8,3342.1,0.28077706]
[1734962835543,0.8177,3342.8,3342.0,2.80777056]
[1734962836009,0.8177,3342.8,3341.9,2.99222]
[1734962836159,0.8177,3342.8,3342.0,2.99213]
[1734962836953,0.8177,3342.8,3341.8,2.99238]
[1734962837404,0.8177,3342.8,3342.0,2.99221]
[1734962837586,0.8177,3342.8,3341.6,2.80777056]
[1734962837900,3.74477,3342.7,3341.6,5.80033056]
[1734962838111,0.7531,3342.6,3341.7,2.99248]
[1734962838402,0.7531,3342.6,3341.8,2.99238]
[1734962838571,0.7531,3342.6,3341.8,3.02230223]
[1734962838774,0.7531,3342.6,3341.8,2.99238]
[1734962840261,0.7531,3342.6,3341.6,5.80031056]
[1734962840459,0.7531,3342.6,3341.6,2.80777056]
[1734962841008,2.99186,3342.4,3341.3,2.99283]
[1734962841162,0.7687,3342.3,3341.5,2.99265]
[1734962841363,0.7687,3342.3,3341.1,4.679659]
[1734962841364,0.7687,3342.3,3341.9,2.80777056]
[1734962841599,0.7687,3343.2,3342.3,2.99194]
[1734962841771,0.43614294,3343.1,3342.1,2.99211]
[1734962842418,0.7687,3343.2,3342.0,2.99222]
[1734962842562,0.7687,3343.2,3342.4,2.99185]
[1734962842757,0.7687,3343.2,3342.3,2.80777056]
[1734962843177,0.7687,3343.2,3341.9,2.80777056]
[1734962843380,0.7687,3343.2,3341.6,1.24792563]
[1734962843381,0.7687,3343.2,3343.1,2.99123]
[1734962843672,0.7555,3344.4,3343.1,3.40604356]
[1734962843874,0.7555,3344.4,3343.5,2.99079]
[1734962844716,0.7555,3344.4,3343.2,2.99105]
[1734962844858,0.029935,3344.8,3343.1,2.80777056]
[1734962845062,0.8278,3344.0,3343.1,2.80777056]
[1734962845312,3.81825,3344.0,3343.1,2.80777056]
[1734962845597,0.8278,3343.9,3343.1,2.80777056]
[1734962845801,0.8278,3343.9,3342.9,1.24792563]
[1734962845985,0.8049,3343.7,3342.9,1.24792563]
[1734962846184,0.8049,3343.3,3342.9,1.24792563]
[1734962846383,0.8049,3343.3,3342.8,1.24792563]
[1734962846582,1.184487,3343.3,3342.8,1.24792563]
[1734962846868,2.99132,3343.0,3342.8,1.24792563]
[1734962847070,0.8049,3342.9,3342.8,1.24792563]
[1734962847364,0.8049,3343.4,3342.8,1.24792563]
[1734962847769,0.8049,3343.4,3342.4,5.79961056]
[1734962848003,0.8049,3343.4,3342.4,2.80777056]
[1734962848209,0.8049,3343.4,3342.6,2.99168]
[1734962848520,0.8049,3343.4,3342.4,2.80777056]
[1734962848697,0.8049,3343.4,3341.7,5.51630707]
[1734962848698,2.99161,3342.7,3342.1,1.24792563]
[1734962848902,0.8049,3342.6,3342.1,1.24792563]
[1734962849498,3.79666,3342.6,3341.6,4.05569619]
[1734962850130,0.8202,3342.0,3341.6,1.24792563]
[1734962850604,0.8202,3342.0,3341.7,2.57616148]
[1734962851113,0.029935,3343.0,3341.8,2.99238]
[1734962851114,2.9915,3342.8,3341.8,2.99238]
[1734962851437,0.7762,3342.9,3341.9,2.99222]
[1734962851634,0.029935,3342.8,3341.7,2.57616148]
[1734962851785,0.029935,3342.8,3341.0,3.14197007]
[1734962851786,0.029935,3342.8,3340.9,4.05569619]
[1734962851991,3.81112,3341.9,3340.9,2.14001609]
[1734962852300,3.81138,3341.6,3340.9,1.24792563]
[1734962852730,2.99276,3341.4,3341.0,1.03130581]
[1734962853284,2.99287,3341.3,3341.0,0.53130581]
[1734962853640,3.82414,3341.2,3341.0,0.53130581]
[1734962853786,0.382414,3341.1,3341.0,0.53130581]
[1734962853989,0.8312,3341.2,3340.2,1.24792563]
[1734962854523,0.7697,3343.2,3342.2,2.99201]
[1734962854691,0.7697,3343.2,3341.2,2.99293]
[1734962854692,3.76091,3343.2,3342.0,2.9922]
[1734962854887,2.99125,3343.1,3341.7,2.9924]
[1734962855093,0.799635,3343.2,3341.6,0.02991968]
[1734962855094,0.7697,3343.2,3341.6,0.02991968]
[1734962855310,0.51032839,3343.1,3342.2,2.99204]
[1734962855819,0.51032839,3343.1,3341.8,0.02991968]
[1734962856018,3.50156839,3343.1,3341.9,2.99223]
[1734962856333,0.7933,3343.0,3341.7,2.80777056]
[1734962856989,0.7933,3343.0,3341.6,0.58376902]
[1734962857533,0.7933,3343.0,3341.7,2.99248]
[1734962857718,0.7697,3342.8,3341.6,1.24792563]
[1734962857925,2.99179,3342.5,3341.6,1.24792563]
[1734962858227,0.7697,3342.4,3341.6,1.24792563]
[1734962858603,2.99164,3342.7,3341.1,6.13499007]
[1734962858604,0.7694,3342.1,3341.1,1.24792563]
[1734962858783,2.99222,3342.0,3341.1,1.24792563]
[1734962859200,0.7694,3342.1,3341.1,1.24792563]
[1734962859383,0.7828,3341.8,3341.1,1.24792563]
[1734962859804,0.7828,3341.8,3340.5,4.05569619]
[1734962859999,0.377511,3341.7,3340.8,2.99328]
[1734962860349,0.377511,3341.7,3340.6,0.02993072]
[1734962860487,0.377511,3341.7,3340.8,2.99325]
[1734962861337,0.377511,3341.7,3340.9,2.99312]
[1734962861538,0.7828,3341.8,3340.9,2.99312]
[1734962861753,0.7828,3341.8,3340.6,0.02993072]
[1734962861754,0.812735,3341.8,3340.6,2.99339]
[1734962861912,0.818,3341.7,3340.6,2.99339]
[1734962862319,0.818,3341.7,3340.5,2.80777056]
[1734962862519,0.818,3341.7,3340.7,2.99333]
[1734962862751,0.3840335,3341.6,3340.6,0.02993214]
[1734962862953,0.818,3341.7,3340.6,0.02993214]
[1734962863106,0.818,3341.7,3340.8,2.9932]
[1734962863538,0.818,3341.7,3341.3,2.99279]
[1734962864108,0.818,3341.7,3341.4,2.99271]
[1734962864513,0.818,3341.7,3340.6,4.24792563]
[1734962864727,2.99258,3341.6,3340.6,7.24137563]
[1734962864954,0.381058,3341.5,3340.7,0.05603143]
[1734962865124,0.381058,3341.5,3340.7,3.04936143]
[1734962865329,0.381058,3341.5,3340.7,4.5955291]
[1734962866029,0.381058,3341.5,3340.7,3.04936143]
[1734962866356,3.373728,3341.5,3340.7,0.05603143]
[1734962866574,1.2368728,3341.4,3340.7,0.05603143]
[1734962866853,0.8177,3341.2,3340.8,0.04898452]
[1734962867060,0.8177,3341.2,3340.3,1.24792563]
[1734962867207,0.8177,3341.2,3340.8,0.04898452]
[1734962867407,0.8177,3341.2,3340.3,1.24792563]
[1734962867650,0.8177,3341.2,3340.8,0.04898452]
[1734962867903,0.8177,3341.2,3340.3,1.24792563]
[1734962868064,3.81064,3341.2,3340.8,0.04898452]
[1734962868214,3.81064,3341.2,3340.2,2.99382]
[1734962868215,0.381064,3341.1,3340.2,2.99382]
[1734962868411,0.381064,3341.1,3340.8,0.04898452]
[1734962868719,0.381064,3341.1,3339.7,7.04990619]
[1734962868720,0.7849,3340.8,3339.7,4.05569619]
[1734962868918,0.7849,3340.6,3339.7,1.24792563]
[1734962869217,0.7849,3340.1,3339.8,1.24792563]
[1734962869414,0.029935,3340.0,3339.8,1.24792563]
[1734962869622,2.99401,3340.0,3339.8,1.24792563]
[1734962869859,0.377891,3340.0,3339.8,1.24792563]
[1734962870025,2.9941,3339.9,3339.8,1.24792563]
[1734962870225,3.779,3339.9,3339.8,1.24792563]
[1734962870428,3.779,3339.9,3339.1,3.77036409]
[1734962870429,3.779,3339.9,3338.8,1.24792563]